bitfinex/quotes_ETHUSD_20240828
["timestamp","ask_amount","ask_price","bid_price","bid_amount"]
[1724865829624,3.97094,2518.3,2518.0,0.06126389]
[1724865829899,3.97072,2518.5,2518.0,0.06126389]
[1724865830052,3.0,2518.4,2517.9,3.97154]
[1724865830249,3.0,2518.4,2518.1,0.06116079]
[1724865830716,3.0,2518.4,2517.9,3.97154]
[1724865830865,3.7667772,2518.5,2518.2,0.06105769]
[1724865831060,3.7667772,2518.5,2517.9,3.97154]
[1724865831266,3.7667772,2518.5,2518.3,0.06095461]
[1724865831470,3.7667772,2518.5,2517.9,3.97145]
[1724865831692,3.7667772,2518.5,2518.4,0.06085153]
[1724865831904,3.97023,2518.8,2518.4,0.06085153]
[1724865832055,3.97031,2518.7,2518.2,3.97108]
[1724865832288,3.96977,2519.1,2518.5,0.06074846]
[1724865832620,3.96983,2519.0,2518.3,3.97078]
[1724865832778,3.96983,2519.0,2518.5,3.97061]
[1724865832974,3.96983,2519.0,2518.6,0.0599054]
[1724865833525,3.97,2518.9,2518.6,0.0599054]
[1724865833884,3.97,2518.9,2518.3,7.94163]
[1724865834116,3.96983,2519.0,2518.7,0.05980235]
[1724865834323,3.96983,2519.0,2518.4,3.97074]
[1724865834612,5.063768,2519.0,2518.8,0.0596993]
[1724865834779,3.96983,2519.0,2518.5,3.97059]
[1724865835214,3.96983,2519.0,2518.6,0.0599054]
[1724865835418,3.96967,2519.1,2518.6,0.0599054]
[1724865835576,3.96936,2519.3,2518.8,3.97013]
[1724865835776,3.9676,2520.5,2518.9,0.05959626]
[1724865835777,3.9692,2519.4,2518.9,0.05959626]
[1724865836599,3.96937,2519.3,2518.9,0.05959626]
[1724865836979,0.396873,2519.6,2518.9,0.05959626]
[1724865837181,3.96873,2519.7,2519.2,6.22071]
[1724865837501,3.96873,2519.7,2519.3,0.0591842]
[1724865837684,3.96857,2519.8,2519.3,0.0591842]
[1724865837986,3.96857,2519.8,2519.4,0.0590812]
[1724865838200,3.96874,2519.7,2519.4,0.0590812]
[1724865838407,0.56858279,2519.6,2518.7,6.38839]
[1724865838607,3.96968,2519.1,2518.8,0.0596993]
[1724865838788,4.53748279,2519.6,2518.8,3.97004]
[1724865838789,3.96921,2519.4,2518.8,3.97004]
[1724865838998,3.96914,2519.5,2518.8,3.97004]
[1724865838999,3.96914,2519.5,2519.0,3.96979]
[1724865839178,3.96923,2519.4,2518.9,0.05959626]
[1724865839389,3.96923,2519.4,2519.0,0.0587861]
[1724865839705,3.96938,2519.3,2519.0,0.0587861]
[1724865840206,3.96938,2519.3,2519.1,0.05868308]
[1724865840423,3.96985,2519.0,2518.7,2.4182]
[1724865840597,3.96985,2519.0,2518.8,0.05899217]
[1724865841127,3.96963,2519.2,2518.9,0.05888913]
[1724865841430,3.96963,2519.2,2518.6,7.9407]
[1724865841587,7.366011,2519.5,2518.9,3.96989]
[1724865841784,6.96912,2519.5,2519.0,0.05823938]
[1724865841988,6.96912,2519.5,2518.9,3.96989]
[1724865842209,3.96932,2519.4,2519.0,0.05823437]
[1724865842527,3.96924,2519.4,2518.8,3.97003]
[1724865842725,3.96924,2519.4,2519.1,0.05813135]
[1724865843018,0.81641108,2519.4,2519.2,0.05802834]
[1724865843227,4.78561108,2519.4,2518.8,7.94005]
[1724865843387,4.78561108,2519.4,2518.9,4.02828734]
[1724865843619,4.78561108,2519.4,2518.9,0.05831734]
[1724865843952,5.14483311,2519.3,2518.9,0.05831734]
[1724865844120,3.96936,2519.3,2518.9,0.05831734]
[1724865844323,3.96936,2519.3,2518.7,3.97029]
[1724865844324,3.96951,2519.2,2518.7,3.97029]
[1724865844554,3.96967,2519.1,2519.0,0.05819426]
[1724865844865,3.96996,2519.0,2518.4,6.36049]
[1724865845227,3.96996,2519.0,2518.5,4.02938593]
[1724865845427,3.96996,2519.0,2518.5,0.05879593]
[1724865845839,3.96996,2519.0,2518.5,4.02936593]
[1724865846024,3.96984,2519.0,2518.5,4.02936593]
[1724865848066,3.96967,2519.1,2518.6,3.97034]
[1724865848534,3.96951,2519.2,2518.7,4.02893502]
[1724865848736,3.0,2519.5,2518.9,3.96994]
[1724865848737,3.96922,2519.4,2518.9,3.96994]
[1724865848960,3.0,2519.5,2519.0,3.96969]
[1724865848961,6.96919,2519.5,2519.0,3.96969]
[1724865849144,3.96889,2519.6,2519.1,3.96966]
[1724865849472,3.96836,2520.0,2519.4,3.96916]
[1724865849638,3.96842,2519.9,2519.4,3.96916]
[1724865849837,3.96836,2520.0,2519.5,4.02682579]
[1724865850058,3.96802,2520.2,2519.6,3.96872]
[1724865850263,0.41568009,2519.9,2519.8,3.96856]
[1724865850564,0.41568009,2519.9,2519.8,7.93712]
[1724865850871,0.41568009,2519.9,2519.8,7.99460184]
[1724865851258,0.41568009,2519.9,2519.8,10.83360184]
[1724865851723,0.41568009,2519.9,2519.8,2.34648184]
[1724865851928,0.41568009,2519.9,2519.8,0.05748184]
[1724865852433,0.41568009,2519.9,2519.8,0.05725627]
[1724865852749,0.41568009,2519.9,2519.6,3.96878]
[1724865852961,0.41568009,2519.9,2519.8,4.02581627]
[1724865853166,0.41568009,2519.9,2519.8,8.01648587]
[1724865853327,0.41568009,2519.9,2519.8,8.54437627]
[1724865853974,0.41568009,2519.9,2519.8,0.05725627]
[1724865854329,0.41568009,2519.9,2519.5,6.21909]
[1724865854529,0.41568009,2519.9,2519.8,4.02581627]
[1724865855336,0.41568009,2519.9,2519.8,7.99437627]
[1724865855834,0.41568009,2519.9,2519.8,10.99567627]
[1724865856035,0.41568009,2519.9,2519.8,2.50855627]
[1724865856235,0.41568009,2519.9,2519.8,0.05725627]
[1724865856471,0.41568009,2519.9,2519.5,3.96901]
[1724865856632,0.41568009,2519.9,2519.8,0.05725627]
[1724865856842,0.41568009,2519.9,2519.0,2.291]
[1724865856843,3.96885,2519.7,2519.0,2.291]
[1724865857460,3.96889,2519.6,2519.0,6.26067]
[1724865857650,3.96885,2519.7,2519.2,3.96951]
[1724865857834,0.41568009,2519.9,2519.4,3.96917]
[1724865858036,0.41568009,2519.9,2519.5,3.96902]
[1724865858673,0.41568009,2519.9,2519.4,3.96917]
[1724865858874,0.41568009,2519.9,2519.0,2.291]
[1724865858875,3.96887,2519.7,2519.1,3.96964]
[1724865859177,4.80418201,2519.7,2519.1,3.96964]
[1724865859390,7.93789,2519.6,2519.0,6.26082]
[1724865859586,0.83531201,2519.7,2519.0,6.26071]
[1724865859804,3.96867,2519.8,2519.0,6.26071]
[1724865860013,3.96898,2519.6,2519.0,10.23045]
[1724865860293,3.96898,2519.6,2519.1,3.96964]
[1724865860578,3.96864,2519.8,2519.2,3.96951]
[1724865860779,3.96864,2519.8,2519.3,3.96932]
[1724865860974,3.96864,2519.8,2519.2,3.96943]
[1724865861182,3.96873,2519.7,2519.2,3.96943]
[1724865861479,4.40707201,2519.8,2518.6,9.31123]
[1724865861480,3.96936,2519.3,2518.6,9.31123]
[1724865861685,3.96936,2519.3,2518.7,3.97029]
[1724865861841,3.96936,2519.3,2518.6,6.31117]
[1724865862041,3.96914,2519.5,2518.9,3.96998]
[1724865862242,8.38346152,2519.5,2518.9,3.96998]
[1724865862443,4.41428152,2519.5,2518.9,3.96998]
[1724865862783,4.41427152,2519.5,2518.9,3.96998]
[1724865862992,4.45106521,2519.7,2519.1,3.96963]
[1724865862993,0.48227521,2519.7,2519.1,3.96963]
[1724865863283,3.96873,2519.7,2519.2,3.9695]
[1724865863437,4.45537753,2519.7,2519.2,3.9695]
[1724865863639,4.45537753,2519.7,2519.1,3.96963]
[1724865863640,3.96889,2519.6,2519.1,3.96957]
[1724865863839,3.96906,2519.5,2519.0,3.9698]
[1724865864163,0.48664753,2519.7,2518.9,0.0793917]
[1724865864336,3.96868,2519.8,2518.9,0.0793917]
[1724865864337,0.41568009,2519.9,2519.5,3.96902]
[1724865864533,0.41568009,2519.9,2519.3,3.9692]
[1724865864869,4.38412009,2519.9,2519.3,3.9692]
[1724865865070,0.41568009,2519.9,2519.5,3.96893]
[1724865865271,4.38417009,2519.9,2519.3,7.93848]
[1724865865578,3.96943,2519.3,2518.8,3.97008]
[1724865865894,3.96943,2519.3,2518.7,2.3458]
[1724865865895,4.366553,2519.2,2518.7,6.31599]
[1724865866043,0.396943,2519.2,2518.7,10.28621]
[1724865866248,0.8126443,2519.2,2518.7,10.28619]
[1724865866966,0.8126443,2519.2,2518.8,3.97005]
[1724865867143,0.8126443,2519.2,2518.9,3.96996]
[1724865867144,0.4157013,2519.2,2518.9,3.96996]
[1724865867772,0.4157013,2519.2,2519.0,3.96972]
[1724865867944,0.4157013,2519.2,2519.0,0.0574589]
[1724865868157,0.4157013,2519.2,2519.0,4.0272789]
[1724865868359,0.4157013,2519.2,2519.0,0.0574589]
[1724865868835,0.4157013,2519.2,2519.1,3.96967]
[1724865869041,0.4157013,2519.2,2519.1,4.02702588]
[1724865869484,0.4157013,2519.2,2519.1,0.05735588]
[1724865870015,0.4157013,2519.2,2518.9,3.96986]
[1724865870322,0.4157013,2519.2,2519.0,0.057995]
[1724865870494,4.3852913,2519.2,2519.0,0.057995]
[1724865870669,3.97016,2518.8,2518.3,2.3601]
[1724865870873,0.56858279,2519.0,2517.9,2.3601]
[1724865871071,3.97088,2518.4,2517.9,2.3601]
[1724865871301,3.97088,2518.4,2517.9,6.33166]
[1724865871765,3.97087,2518.4,2517.9,2.3601]
[1724865872001,7.94112,2518.6,2517.9,2.3601]
[1724865872220,3.97056,2518.6,2518.0,3.97129]
[1724865872575,3.97054,2518.6,2518.0,3.97129]
[1724865872775,7.94108,2518.6,2518.0,3.97129]
[1724865872971,8.735188,2518.6,2518.0,3.97129]
[1724865873283,4.764648,2518.6,2518.0,3.97129]
[1724865873490,0.794108,2518.6,2517.9,2.3601]
[1724865873688,6.97014,2518.8,2517.8,11.38164]
[1724865873995,6.97014,2518.8,2517.6,6.46854]
[1724865873996,3.97059,2518.6,2518.1,3.97115]
[1724865875075,7.46943,2519.0,2518.3,2.4875]
[1724865875373,3.97,2518.9,2518.3,2.4875]
[1724865875686,3.97,2518.9,2518.3,6.45839]
[1724865875905,4.71695,2518.9,2518.3,6.45839]
[1724865876416,4.71695,2518.9,2518.3,2.4875]
[1724865876604,3.97038,2518.7,2518.2,4.0503735]
[1724865876799,4.717,2518.9,2518.3,3.97091]
[1724865877313,3.97091,2518.4,2517.9,2.4875]
[1724865877540,3.97117,2518.2,2517.7,3.97178]
[1724865877685,3.97088,2518.4,2517.7,3.97176]
[1724865877884,3.97088,2518.4,2517.9,3.97152]
[1724865878080,3.97088,2518.4,2518.0,3.9714]
[1724865878411,7.94176,2518.4,2517.9,3.97148]
[1724865878578,3.97088,2518.4,2517.9,3.97148]
[1724865879027,7.94174,2518.4,2517.9,3.97148]
[1724865879330,3.97086,2518.4,2517.9,3.97148]
[1724865879619,3.97056,2518.6,2517.7,3.97177]
[1724865879620,3.97056,2518.6,2518.0,3.97127]
[1724865879819,3.97039,2518.7,2518.1,3.97124]
[1724865880019,3.97048,2518.6,2518.1,3.97124]
[1724865880328,7.94106,2518.6,2518.1,3.97124]
[1724865880484,3.97062,2518.5,2518.1,3.97124]
[1724865880681,7.94108,2518.6,2518.1,3.97124]
[1724865880983,3.97048,2518.6,2518.1,3.97124]
[1724865881179,3.97088,2518.4,2517.8,3.97162]
[1724865881425,3.97101,2518.3,2517.8,3.97162]
[1724865881779,3.97111,2518.2,2517.7,6.40685]
[1724865882106,3.97111,2518.2,2517.7,10.37865]
[1724865882447,3.97148,2518.0,2517.5,3.97206]
[1724865882640,3.97165,2517.9,2517.4,3.97228]
[1724865882935,3.97165,2517.9,2517.5,0.05860954]
[1724865883232,7.94298,2518.0,2517.5,4.03078954]
[1724865883533,3.97148,2518.0,2517.5,8.00296954]
[1724865883708,3.97087,2518.4,2517.6,0.0794396]
[1724865883913,3.97086,2518.4,2517.9,3.97148]
[1724865884290,7.94172,2518.4,2518.0,0.05825946]
[1724865884536,3.97094,2518.3,2518.0,0.05825946]
[1724865884733,4.92422901,2518.4,2518.0,0.05825946]
[1724865884940,4.92422901,2518.4,2517.8,3.97164]
[1724865885142,0.41573305,2518.5,2518.1,0.05810116]
[1724865885301,0.41573305,2518.5,2518.0,3.47176]
[1724865885503,7.38635305,2518.5,2518.2,0.05799807]
[1724865885709,8.5553024,2518.5,2518.1,0.05810116]
[1724865885900,4.5846824,2518.5,2518.3,0.05789498]
[1724865886105,4.5846824,2518.5,2518.2,0.05796797]
[1724865886106,8.5553124,2518.5,2518.2,0.05796797]
[1724865886300,8.5553124,2518.5,2518.0,3.47176]
[1724865886301,0.41573305,2518.5,2518.0,3.47176]
[1724865886545,0.41573305,2518.5,2518.3,0.05786488]
[1724865886842,0.41573305,2518.5,2518.4,0.0577618]
[1724865887141,3.97102,2518.3,2517.8,3.97161]
[1724865887448,7.94236,2518.2,2517.6,10.41126]
[1724865887602,3.97116,2518.2,2517.6,6.43931]
[1724865887807,7.94235,2518.2,2517.7,3.97187]
[1724865888131,3.97116,2518.2,2517.7,3.97187]
[1724865888334,0.41573305,2518.5,2518.2,3.971]
[1724865888536,0.41573305,2518.5,2518.1,3.97115]
[1724865889010,0.41573305,2518.5,2518.1,7.94231]
[1724865889215,0.41573305,2518.5,2518.1,3.97115]
[1724865889849,0.41573305,2518.5,2518.2,3.97108]
[1724865891153,0.41573305,2518.5,2518.1,3.97115]
[1724865891323,0.41573305,2518.5,2518.3,3.97091]
[1724865891648,0.41573305,2518.5,2518.3,7.94176]
[1724865891858,0.41573305,2518.5,2518.3,3.97085]
[1724865892145,0.41573305,2518.5,2518.3,3.97084]
[1724865892844,0.41573305,2518.5,2518.4,3.97077]
[1724865893005,3.96952,2519.2,2518.7,3.97023]
[1724865893209,7.93991,2519.0,2518.4,3.97076]
[1724865893412,0.41571546,2518.9,2518.4,3.97075]
[1724865893732,0.41571546,2518.9,2518.2,3.97097]
[1724865894126,3.97048,2518.6,2518.1,3.97124]
[1724865894453,3.97025,2518.8,2518.2,3.97097]
[1724865894849,3.97025,2518.8,2518.2,7.94197]
[1724865895146,3.97025,2518.8,2518.3,3.97088]
[1724865895352,0.41571546,2518.9,2518.6,3.97045]
[1724865895518,0.41571546,2518.9,2518.7,3.97029]
[1724865895731,0.41571546,2518.9,2518.8,3.97014]
[1724865895909,3.96907,2519.5,2519.1,3.96965]
[1724865896215,0.41566119,2519.3,2519.0,3.96982]
[1724865896616,0.41566119,2519.3,2519.1,3.96963]
[1724865896823,0.41566119,2519.3,2519.2,7.93902]
[1724865897421,7.93668,2520.0,2519.4,3.96911]
[1724865897608,4.608994,2520.0,2519.4,3.96911]
[1724865897814,0.41564126,2519.5,2519.4,3.96911]
[1724865898008,4.608994,2520.0,2519.4,3.96911]
[1724865898009,8.577394,2520.0,2519.4,7.93822]
[1724865898317,0.41564104,2519.7,2519.1,2.3492]
[1724865898521,0.41564104,2519.7,2519.5,3.9689]
[1724865898719,0.41564104,2519.7,2519.6,3.96888]
[1724865898927,0.41564104,2519.7,2519.4,7.93823]
[1724865899308,0.41564104,2519.7,2519.4,3.96907]
[1724865900124,0.41564104,2519.7,2519.2,3.96937]
[1724865900444,4.38448104,2519.7,2519.0,3.96982]
[1724865900768,3.4384481,2519.6,2518.8,4.04949743]
[1724865900908,3.4384481,2519.6,2518.8,0.07938743]
[1724865901108,3.0,2519.6,2519.2,3.96943]
[1724865901314,6.9689,2519.6,2519.0,3.96971]
[1724865901637,0.41564104,2519.7,2519.3,3.96933]
[1724865901822,0.41564104,2519.7,2519.6,3.96888]
[1724865902024,0.41564104,2519.7,2519.5,7.93797]
[1724865902244,0.41564104,2519.7,2519.5,3.96894]
[1724865902561,0.41564104,2519.7,2519.6,3.96888]
[1724865903256,0.41564104,2519.7,2519.5,3.96894]
[1724865904133,0.41564104,2519.7,2519.5,7.9379]
[1724865904375,0.41564104,2519.7,2519.5,3.96894]
[1724865904538,0.41564104,2519.7,2519.1,6.31565]
[1724865904862,8.79167514,2519.7,2519.1,3.96965]
[1724865905064,3.96893,2519.6,2519.1,3.96965]
[1724865905670,3.96893,2519.6,2519.2,3.96949]
[1724865905875,3.96893,2519.6,2519.3,0.05335494]
[1724865906041,3.96893,2519.6,2519.2,3.96949]
[1724865906248,3.96893,2519.6,2519.3,0.05335494]
[1724865906447,3.96893,2519.6,2519.2,3.96949]
[1724865906647,0.41564104,2519.7,2519.5,3.96901]
[1724865906968,0.41564104,2519.7,2519.6,0.05304597]
[1724865907331,0.41564104,2519.7,2519.6,4.02192597]
[1724865907817,0.41564104,2519.7,2519.6,0.05304597]
[1724865908715,3.96948,2519.3,2518.7,3.97018]
[1724865908887,3.96948,2519.3,2518.8,3.97006]
[1724865909098,2.3883,2519.6,2518.7,3.97018]
[1724865909099,7.93913,2519.2,2518.7,3.97018]
[1724865909278,3.9699,2519.0,2518.5,3.97053]
[1724865909603,3.96952,2519.2,2518.7,3.97029]
[1724865909808,3.96952,2519.2,2518.7,7.94051]
[1724865909965,4.763402,2519.2,2518.8,3.97014]
[1724865910375,4.763402,2519.2,2518.3,6.3353]
[1724865910604,4.763402,2519.2,2518.8,3.97012]
[1724865910818,4.763402,2519.2,2518.4,3.0]
[1724865910819,3.96931,2519.4,2518.9,3.96988]
[1724865911110,3.9693,2519.4,2518.9,3.96988]
[1724865911298,3.9693,2519.4,2518.9,3.96987]
[1724865911609,4.67278691,2519.4,2518.8,3.97013]
[1724865911817,2.3436,2519.3,2518.3,6.33524]
[1724865911970,2.3436,2519.3,2518.2,3.97106]
[1724865911971,3.97043,2518.7,2518.2,3.97106]
[1724865912867,3.96968,2519.1,2518.3,0.05462054]
[1724865913063,0.97805587,2519.1,2518.7,3.97021]
[1724865913315,9.78029869,2519.3,2518.7,3.97021]
[1724865913316,9.31302,2519.3,2518.8,0.05435553]
[1724865913481,3.0,2519.3,2518.8,0.05435553]
[1724865913673,0.4157092,2519.3,2519.2,3.96951]
[1724865914008,0.4157092,2519.3,2519.2,4.02345343]
[1724865914405,0.4157092,2519.3,2519.2,7.99296343]
[1724865914595,2.3436,2520.0,2519.6,3.96886]
[1724865914801,7.93577,2520.3,2519.6,3.96886]
[1724865915006,0.41565317,2519.7,2519.6,7.93774]
[1724865915207,7.93574,2520.3,2519.7,3.96861]
[1724865915411,4.599008,2520.3,2519.6,3.96886]
[1724865915580,0.41561055,2519.9,2519.5,3.969]
[1724865915918,0.41561617,2519.9,2519.5,3.969]
[1724865916281,0.41561617,2519.9,2519.7,3.96862]
[1724865916521,0.41561617,2519.9,2519.8,3.96856]
[1724865916821,3.96758,2520.5,2519.8,3.96856]
[1724865916822,7.93514,2520.5,2519.9,3.96826]
[1724865917028,0.4156038,2520.1,2519.9,3.96826]
[1724865917681,0.4156038,2520.1,2520.0,3.96825]
[1724865917889,0.4156038,2520.1,2520.0,7.9365]
[1724865918110,2.3603,2520.8,2520.3,3.9677]
[1724865918111,6.32729,2520.8,2520.3,3.9677]
[1724865918331,4.38317626,2520.5,2519.9,3.96832]
[1724865918478,0.83505063,2520.4,2520.0,3.96811]
[1724865918674,0.41556626,2520.5,2520.0,3.96811]
[1724865918890,0.41556626,2520.5,2519.9,3.96832]
[1724865919097,3.96762,2520.4,2519.9,3.96832]
[1724865919303,0.41556626,2520.5,2519.9,3.9683]
[1724865919521,0.85385589,2520.5,2519.9,3.9683]
[1724865919705,0.85385589,2520.5,2520.1,3.96805]
[1724865920338,0.41556626,2520.5,2520.4,7.93524]
[1724865920499,2.2734,2521.2,2520.8,3.9669]
[1724865920699,0.41551851,2521.1,2520.9,3.96674]
[1724865920949,0.41551851,2521.1,2520.4,4.04691361]
[1724865920950,0.41551851,2521.1,2520.4,0.07933361]
[1724865921248,2.4388,2521.9,2521.2,3.96634]
[1724865921400,0.41540666,2521.5,2521.4,3.96594]
[1724865921601,2.4388,2521.9,2521.3,4.04551572]
[1724865921915,0.56858279,2522.3,2521.3,3.96609]
[1724865921916,0.41536031,2521.5,2521.3,3.96609]
[1724865922236,0.41536031,2521.5,2520.8,6.24394]
[1724865922237,2.4599,2522.3,2520.9,3.96675]
[1724865922437,4.94995542,2521.5,2520.9,3.96675]
[1724865922740,3.96606,2521.4,2520.8,6.24398]
[1724865922944,6.42563,2521.6,2520.8,6.24398]
[1724865922945,0.41540758,2521.5,2521.2,3.96625]
[1724865923244,0.41540758,2521.5,2520.8,2.277]
[1724865923245,0.41540758,2521.5,2520.9,7.93348]
[1724865923458,4.81942534,2521.5,2520.9,3.96672]
[1724865923757,0.85352534,2521.5,2521.0,3.96667]
[1724865923905,0.85352534,2521.5,2521.1,3.96642]
[1724865924104,0.41540758,2521.5,2521.1,7.93282]
[1724865924431,0.41540758,2521.5,2521.1,3.96641]
[1724865924941,0.41540758,2521.5,2521.0,0.07932102]
[1724865925132,0.41540758,2521.5,2520.9,3.96671]
[1724865925133,1.15351534,2521.5,2520.9,3.96671]
[1724865925516,1.15351534,2521.5,2521.0,4.04585101]
[1724865925922,1.15351534,2521.5,2521.1,3.96651]
[1724865926119,1.15351534,2521.5,2521.1,3.96642]
[1724865926324,0.41540758,2521.5,2521.2,0.07932101]
[1724865926526,0.41540758,2521.5,2521.3,3.96609]
[1724865926721,0.41540758,2521.5,2521.4,4.04536292]
[1724865927458,0.41540758,2521.5,2521.3,4.04540294]
[1724865927812,0.41540758,2521.5,2521.4,0.04915416]
[1724865928359,0.41540758,2521.5,2521.3,4.04547302]
[1724865928661,0.41540758,2521.5,2521.4,0.04915416]
[1724865929727,0.41540758,2521.5,2521.1,6.30332]
[1724865929927,0.41540758,2521.5,2521.4,0.04915416]
[1724865929928,8.34718758,2521.5,2521.4,0.04915416]
[1724865930268,3.96614,2521.4,2520.8,3.96698]
[1724865930555,5.45075634,2521.5,2520.8,3.96698]
[1724865930556,5.45075634,2521.5,2520.9,7.98313841]
[1724865930717,0.41540758,2521.5,2521.1,3.96649]
[1724865930916,0.41540758,2521.5,2521.2,0.07932097]
[1724865931276,0.41540758,2521.5,2521.2,0.04935984]
[1724865932014,0.41540758,2521.5,2521.2,4.01569984]
[1724865932261,0.41540758,2521.5,2521.2,4.09501623]
[1724865932565,0.41540758,2521.5,2521.2,4.09494624]
[1724865932932,0.41540758,2521.5,2521.2,4.09493624]
[1724865933159,0.41540758,2521.5,2521.2,4.01561984]
[1724865933460,0.41540758,2521.5,2521.2,7.98187984]
[1724865933752,0.41540758,2521.5,2521.4,3.96605]
[1724865934208,0.41540758,2521.5,2521.4,0.04915416]
[1724865934763,0.41540758,2521.5,2521.1,3.96642]
[1724865934974,4.38140758,2521.5,2521.4,0.04915416]
[1724865935181,0.86455538,2521.5,2520.8,2.444]
[1724865935486,0.86455538,2521.5,2520.1,6.41205]
[1724865935487,3.96702,2520.8,2520.1,6.41205]
[1724865935696,3.96702,2520.8,2519.9,11.37832]
[1724865935697,3.9674,2520.6,2519.8,2.444]
[1724865935904,3.96709,2520.8,2520.2,3.96791]
[1724865936078,3.96746,2520.6,2520.0,3.96821]
[1724865936281,2.2937,2520.9,2519.6,3.96874]
[1724865936282,3.968,2520.2,2519.6,3.96874]
[1724865936676,3.968,2520.2,2519.7,3.96864]
[1724865936870,3.0,2520.5,2519.8,0.07936264]
[1724865937102,2.2937,2520.9,2519.8,0.07936264]
[1724865937103,10.93422,2520.8,2520.0,3.9681]
[1724865937306,6.96709,2520.8,2520.0,7.93626]
[1724865937479,7.93473,2520.6,2520.0,3.9681]
[1724865937689,3.96733,2520.6,2520.0,3.9681]
[1724865937905,3.96733,2520.6,2520.0,7.93626]
[1724865938117,2.2937,2520.9,2520.3,3.96774]
[1724865938318,2.2937,2520.9,2520.2,3.9678]
[1724865938319,0.41552825,2520.6,2520.2,3.9678]
[1724865939103,0.41552825,2520.6,2520.0,3.96816]
[1724865939104,3.96749,2520.5,2520.0,3.96816]
[1724865939508,0.41552825,2520.6,2520.1,4.04740317]
[1724865939713,4.38292825,2520.6,2520.1,4.04740317]
[1724865940030,0.41552825,2520.6,2520.2,0.07935253]
[1724865940386,0.41552825,2520.6,2520.1,7.93601]
[1724865940387,0.41552825,2520.6,2520.1,3.96796]
[1724865940587,0.41552825,2520.6,2520.1,7.93592]
[1724865940787,0.41552825,2520.6,2520.2,3.96784]
[1724865941280,0.41552825,2520.6,2520.1,3.96796]
[1724865941685,4.38286825,2520.6,2520.1,3.96796]
[1724865941992,8.35026825,2520.6,2520.1,3.96796]
[1724865942191,5.21789507,2520.6,2520.0,3.96823]
[1724865942419,5.21789507,2520.6,2520.0,7.93637]
[1724865942637,5.21789507,2520.6,2520.0,3.96814]
[1724865942791,5.21789507,2520.6,2520.1,0.05176098]
[1724865942992,5.21789507,2520.6,2520.1,4.01984098]
[1724865943737,9.18534507,2520.6,2520.1,0.05176098]
[1724865943886,3.96751,2520.5,2520.1,0.05176098]
[1724865944628,5.21789507,2520.6,2520.1,4.01984098]
[1724865944923,8.35027825,2520.6,2520.1,0.05176098]
[1724865945132,3.96747,2520.5,2520.1,0.05176098]
[1724865945333,0.41552825,2520.6,2520.1,0.05176098]
[1724865945504,7.93586,2520.2,2520.1,0.05176098]
[1724865945712,8.964546,2520.2,2520.1,0.05176098]
[1724865946028,8.964546,2520.2,2519.2,3.96941]
[1724865946029,3.96875,2519.7,2519.2,3.96941]
[1724865946244,3.96889,2519.6,2519.2,3.96941]
[1724865946395,3.96875,2519.7,2519.4,0.05248172]
[1724865946747,3.96883,2519.7,2519.3,0.05258472]
[1724865946899,7.418656,2520.2,2519.5,4.02131874]
[1724865947099,3.96827,2520.0,2519.5,4.02131874]
[1724865947931,7.93666,2520.0,2519.5,4.02131874]
[1724865948236,3.96827,2520.0,2519.5,4.02131874]
[1724865948598,6.9681,2520.1,2519.6,4.04816138]
[1724865948797,3.0,2520.1,2519.6,3.96879]
[1724865948992,3.96827,2520.0,2519.7,0.05217279]
[1724865949432,6.9681,2520.1,2519.6,3.96879]
[1724865949637,2.422,2520.5,2519.8,0.05206982]
[1724865949812,3.96763,2520.4,2519.8,0.07935875]
[1724865949995,3.96763,2520.4,2519.9,4.0205069]
[1724865950723,4.38293825,2520.6,2520.0,3.96816]
[1724865951033,4.38293825,2520.6,2519.5,3.96897]
[1724865951034,3.96763,2520.4,2520.1,0.05199101]
[1724865951194,3.96763,2520.4,2519.9,3.96833]
[1724865951646,3.0,2520.5,2520.0,0.05209395]
[1724865951932,3.96801,2520.2,2519.7,3.96861]
[1724865952233,3.96791,2520.3,2519.8,4.02084986]
[1724865952395,3.96757,2520.5,2519.9,0.07936132]
[1724865952599,3.96757,2520.5,2519.9,0.0521969]
[1724865952600,3.9678,2520.3,2519.9,0.0521969]
[1724865952801,0.41552825,2520.6,2520.0,3.96815]
[1724865953040,0.41552825,2520.6,2520.1,0.07935148]
[1724865953240,3.9675,2520.5,2520.1,0.05199101]
[1724865953404,3.9677,2520.4,2520.1,0.05199101]
[1724865953608,0.68463108,2520.6,2519.8,3.96844]
[1724865953609,4.65209108,2520.6,2519.8,3.96844]
[1724865953840,3.96749,2520.5,2520.2,0.05188808]
[1724865954031,4.38282825,2520.6,2520.1,3.96808]
[1724865954336,4.38282825,2520.6,2520.3,0.05178516]
[1724865954547,3.96748,2520.5,2520.0,3.96823]
[1724865954707,3.96748,2520.5,2520.1,0.05199101]
[1724865955252,1.47808608,2520.6,2520.4,3.96761]
[1724865955253,0.41552825,2520.6,2520.4,3.96761]
[1724865955434,0.41552825,2520.6,2520.3,3.96769]
[1724865955637,0.41552825,2520.6,2520.5,0.05157934]
[1724865955945,0.41552825,2520.6,2520.5,8.06584012]
[1724865956162,3.96644,2521.2,2520.7,3.96706]
[1724865956303,3.96614,2521.4,2520.8,3.96691]
[1724865956304,3.96629,2521.3,2520.8,3.96691]
[1724865956502,0.41545845,2521.2,2520.9,0.0511678]
[1724865956943,0.41545845,2521.2,2520.9,3.96669]
[1724865957243,0.41545845,2521.2,2521.0,3.96667]
[1724865957546,0.41545845,2521.2,2521.0,4.01761995]
[1724865958042,0.41545845,2521.2,2521.0,0.05094995]
[1724865958945,0.41545845,2521.2,2520.8,4.04631869]
[1724865958946,3.96608,2521.4,2521.1,0.05062718]
[1724865959118,3.96583,2521.6,2520.9,3.9668]
[1724865959119,4.38127705,2521.6,2520.9,3.9668]
[1724865959322,0.41544705,2521.6,2521.3,3.9662]
[1724865959622,4.63393071,2521.6,2521.2,0.07931914]
[1724865959827,4.63393071,2521.6,2521.4,0.05031865]
[1724865960239,0.46339307,2521.5,2521.1,4.04572922]
[1724865960630,0.46339307,2521.5,2521.1,8.01216922]
[1724865960832,3.96553,2521.8,2521.1,4.04572922]